[Event "Live Chess"]
[Site "Chess.com"]
[Date "2024.06.02"]
[Round "-"]
[White "Crowded_House"]
[Black "ZatixMajor"]
[Result "0-1"]
[WhiteElo "1670"]
[BlackElo "2030"]
[TimeControl "300"]
[EndTime "4:06:24 PDT"]
[Termination "ZatixMajor won by resignation"]

1. d4 {[%clk 0:04:53.5]} 1... Nf6 {[%clk 0:04:59]} 2. Bg5 {[%clk 0:04:52.7]}
2... Ne4 {[%clk 0:04:57.4]} 3. Bh4 {[%clk 0:04:51.9]} 3... g5 {[%clk 0:04:56]}
4. Nd2 {[%clk 0:04:50.6]} 4... Nxd2 {[%clk 0:04:53.9]} 5. Qxd2 {[%clk
0:04:49.4]} 5... gxh4 {[%clk 0:04:53.5]} 6. Nf3 {[%clk 0:04:48.3]} 6... d5
{[%clk 0:04:48.8]} 7. Qf4 {[%clk 0:04:46]} 7... Nc6 {[%clk 0:04:45.2]} 8. Ng5
{[%clk 0:04:23.6]} 8... f6 {[%clk 0:04:32.8]} 9. Nf3 {[%clk 0:04:18.4]} 9... Be6
{[%clk 0:04:27.5]} 10. c3 {[%clk 0:04:14.9]} 10... Qd6 {[%clk 0:04:24.1]} 11.
Qxd6 {[%clk 0:04:12.6]} 11... cxd6 {[%clk 0:04:21.9]} 12. Nxh4 {[%clk
0:04:11.2]} 12... Bf7 {[%clk 0:04:17.4]} 13. e3 {[%clk 0:04:06.7]} 13... e5
{[%clk 0:04:14.4]} 14. dxe5 {[%clk 0:03:53.8]} 14... dxe5 {[%clk 0:04:14.3]} 15.
Bb5 {[%clk 0:03:50.6]} 15... O-O-O {[%clk 0:04:12.2]} 16. O-O {[%clk 0:03:32.1]}
16... d4 {[%clk 0:04:08.9]} 17. Bxc6 {[%clk 0:03:27.9]} 17... bxc6 {[%clk
0:04:07.9]} 18. exd4 {[%clk 0:03:27]} 18... exd4 {[%clk 0:04:07.4]} 19. cxd4
{[%clk 0:03:24]} 19... Rxd4 {[%clk 0:04:06.9]} 20. Nf3 {[%clk 0:03:21.1]} 20...
Rb4 {[%clk 0:04:05.3]} 21. b3 {[%clk 0:03:18.4]} 21... Bg7 {[%clk 0:04:03]} 22.
Rac1 {[%clk 0:03:13.4]} 22... Kb7 {[%clk 0:04:01.4]} 23. Rfd1 {[%clk 0:03:10.6]}
23... Bd5 {[%clk 0:03:52.9]} 24. Re1 {[%clk 0:02:57.8]} 24... Rc8 {[%clk
0:03:47.1]} 25. Re7+ {[%clk 0:02:55.3]} 25... Rc7 {[%clk 0:03:46.5]} 26. Rxc7+
{[%clk 0:02:53.8]} 26... Kxc7 {[%clk 0:03:46.4]} 27. Re1 {[%clk 0:02:52]} 27...
Bxf3 {[%clk 0:03:43.5]} 28. gxf3 {[%clk 0:02:50.9]} 28... Bf8 {[%clk 0:03:41.4]}
29. Re8 {[%clk 0:02:49]} 29... Bd6 {[%clk 0:03:39]} 30. Rh8 {[%clk 0:02:46.2]}
30... Rh4 {[%clk 0:03:37.5]} 31. Rg8 {[%clk 0:02:35.8]} 31... Bxh2+ {[%clk
0:03:32.9]} 32. Kf1 {[%clk 0:02:34]} 32... Bd6 {[%clk 0:03:31.1]} 33. Rg7+
{[%clk 0:02:32.7]} 33... Kb6 {[%clk 0:03:30.3]} 34. Rf7 {[%clk 0:02:30.2]} 34...
Be5 {[%clk 0:03:25.8]} 35. Ke2 {[%clk 0:02:27.8]} 35... Rh1 {[%clk 0:03:24]} 36.
Rf8 {[%clk 0:02:25]} 36... Ra1 {[%clk 0:03:20.5]} 37. Rh8 {[%clk 0:02:18.9]}
37... Rxa2+ {[%clk 0:03:19]} 38. Ke3 {[%clk 0:02:16]} 38... Ra3 {[%clk 0:03:18]}
39. Rxh7 {[%clk 0:02:14.4]} 39... Rxb3+ {[%clk 0:03:17.4]} 40. Ke4 {[%clk
0:02:13.2]} 40... a5 {[%clk 0:03:15.7]} 41. Rh8 {[%clk 0:02:11.3]} 41... Rb5
{[%clk 0:03:12.1]} 42. Rb8+ {[%clk 0:02:10]} 42... Kc5 {[%clk 0:03:11]} 43. Ra8
{[%clk 0:02:07]} 43... Kb4 {[%clk 0:03:08.1]} 44. f4 {[%clk 0:02:05.1]} 44...
Bc3 {[%clk 0:03:02.6]} 45. Ra6 {[%clk 0:01:57.5]} 45... a4 {[%clk 0:02:59.9]}
46. Rxc6 {[%clk 0:01:55.9]} 46... Ra5 {[%clk 0:02:58.8]} 47. Rb6+ {[%clk
0:01:49.7]} 47... Kc4 {[%clk 0:02:54.3]} 48. Rc6+ {[%clk 0:01:47.6]} 48... Kb3
{[%clk 0:02:53.6]} 49. Rb6+ {[%clk 0:01:46]} 49... Kc2 {[%clk 0:02:52.6]} 0-1

[Event "Live Chess"]
[Site "Chess.com"]
[Date "2024.06.02"]
[Round "-"]
[White "GwaryTek"]
[Black "f4nomore"]
[Result "1-0"]
[WhiteElo "1843"]
[BlackElo "1267"]
[TimeControl "300"]
[EndTime "4:06:25 PDT"]
[Termination "GwaryTek won by checkmate"]

1. d4 {[%clk 0:04:58.7]} 1... g6 {[%clk 0:04:58.5]} 2. Bg5 {[%clk 0:04:57.4]}
2... f6 {[%clk 0:04:56.8]} 3. Bh4 {[%clk 0:04:56.2]} 3... d6 {[%clk 0:04:54.2]}
4. Nc3 {[%clk 0:04:54.1]} 4... Bg7 {[%clk 0:04:52.9]} 5. Nf3 {[%clk 0:04:52.7]}
5... Nh6 {[%clk 0:04:51.1]} 6. e4 {[%clk 0:04:50.5]} 6... Nf7 {[%clk 0:04:49.9]}
7. Bc4 {[%clk 0:04:48.7]} 7... e6 {[%clk 0:04:47.6]} 8. Qe2 {[%clk 0:04:46.7]}
8... O-O {[%clk 0:04:46.3]} 9. O-O-O {[%clk 0:04:43.3]} 9... c6 {[%clk
0:04:19.8]} 10. e5 {[%clk 0:04:41.4]} 10... Bh6+ {[%clk 0:04:13.8]} 11. Kb1
{[%clk 0:04:38.1]} 11... g5 {[%clk 0:04:10.4]} 12. Bg3 {[%clk 0:04:23.5]} 12...
fxe5 {[%clk 0:04:05.8]} 13. dxe5 {[%clk 0:04:18.4]} 13... d5 {[%clk 0:04:04.1]}
14. Bd3 {[%clk 0:04:13.2]} 14... Bg7 {[%clk 0:03:54.5]} 15. h4 {[%clk
0:03:29.6]} 15... g4 {[%clk 0:03:49]} 16. Ng5 {[%clk 0:03:28.2]} 16... h5 {[%clk
0:03:46.2]} 17. Bh7+ {[%clk 0:03:15.3]} 17... Kh8 {[%clk 0:03:44.4]} 18. Bg6
{[%clk 0:03:14.3]} 18... Nd7 {[%clk 0:03:32]} 19. Nxf7+ {[%clk 0:03:04.2]} 19...
Rxf7 {[%clk 0:03:28.5]} 20. Bxf7 {[%clk 0:03:04.1]} 20... Qe7 {[%clk 0:03:21.9]}
21. Bxh5 {[%clk 0:03:02.4]} 21... b6 {[%clk 0:03:05.9]} 22. Bxg4 {[%clk
0:02:57.4]} 22... a5 {[%clk 0:03:04.2]} 23. h5 {[%clk 0:02:56.2]} 23... Ba6
{[%clk 0:03:01.6]} 24. Qe3 {[%clk 0:02:42.3]} 24... c5 {[%clk 0:02:52.5]} 25. h6
{[%clk 0:02:38.4]} 25... Kg8 {[%clk 0:02:50.2]} 26. hxg7 {[%clk 0:02:32.1]}
26... Qxg7 {[%clk 0:02:48.7]} 27. Bxe6+ {[%clk 0:02:27.4]} 27... Kf8 {[%clk
0:02:46.6]} 28. Rxd5 {[%clk 0:02:19.3]} 28... Bc8 {[%clk 0:02:35.2]} 29. Bxd7
{[%clk 0:02:08.4]} 29... Bxd7 {[%clk 0:02:32.7]} 30. Rxd7 {[%clk 0:02:07.3]}
30... Qxd7 {[%clk 0:02:29.4]} 31. Qf3+ {[%clk 0:02:06.7]} 31... Ke8 {[%clk
0:02:26.8]} 32. Rh8+ {[%clk 0:02:01.6]} 32... Ke7 {[%clk 0:02:21.7]} 33. Qf6#
{[%clk 0:02:01]} 1-0

[Event "Live Chess"]
[Site "Chess.com"]
[Date "2024.06.02"]
[Round "-"]
[White "JohanKjeldahl"]
[Black "booktrunk"]
[Result "1-0"]
[WhiteElo "1796"]
[BlackElo "1494"]
[TimeControl "300"]
[EndTime "4:06:53 PDT"]
[Termination "JohanKjeldahl won by resignation"]

1. e4 {[%clk 0:04:57.2]} 1... e6 {[%clk 0:04:57.1]} 2. d4 {[%clk 0:04:55.4]}
2... b6 {[%clk 0:04:53.1]} 3. Bd3 {[%clk 0:04:52.7]} 3... Bb7 {[%clk 0:04:50.7]}
4. Nf3 {[%clk 0:04:49.4]} 4... h6 {[%clk 0:04:48.3]} 5. O-O {[%clk 0:04:47.1]}
5... Nf6 {[%clk 0:04:46.8]} 6. Qe2 {[%clk 0:04:45.1]} 6... Be7 {[%clk
0:04:43.5]} 7. e5 {[%clk 0:04:43]} 7... Nd5 {[%clk 0:04:41.7]} 8. a3 {[%clk
0:04:38.1]} 8... Nc6 {[%clk 0:04:39.5]} 9. c4 {[%clk 0:04:36.4]} 9... Rg8 {[%clk
0:04:23.7]} 10. cxd5 {[%clk 0:04:34.4]} 10... Rh8 {[%clk 0:04:23.1]} 11. dxc6
{[%clk 0:04:32.1]} 1-0

[Event "Live Chess"]
[Site "Chess.com"]
[Date "2024.06.02"]
[Round "-"]
[White "juniortay"]
[Black "vlad10898"]
[Result "0-1"]
[WhiteElo "2362"]
[BlackElo "2873"]
[TimeControl "300"]
[EndTime "4:07:01 PDT"]
[Termination "vlad10898 won by resignation"]

1. e4 {[%clk 0:04:57.6]} 1... c5 {[%clk 0:04:56.7]} 2. Nf3 {[%clk 0:04:56.5]}
2... e6 {[%clk 0:04:56]} 3. d4 {[%clk 0:04:55.7]} 3... cxd4 {[%clk 0:04:55.6]}
4. Bg5 {[%clk 0:04:55.1]} 4... Nf6 {[%clk 0:04:55.5]} 5. e5 {[%clk 0:04:53.9]}
5... h6 {[%clk 0:04:54.4]} 6. Bc1 {[%clk 0:04:52.5]} 6... Nd5 {[%clk 0:04:51]}
7. Qxd4 {[%clk 0:04:50.7]} 7... Nc6 {[%clk 0:04:48.9]} 8. Qe4 {[%clk 0:04:49.8]}
8... d6 {[%clk 0:04:48.1]} 9. exd6 {[%clk 0:04:47.2]} 9... Bxd6 {[%clk
0:04:46.9]} 10. g3 {[%clk 0:04:45.9]} 10... O-O {[%clk 0:04:22.1]} 11. Bg2
{[%clk 0:04:44.6]} 11... b6 {[%clk 0:04:21.5]} 12. O-O {[%clk 0:04:42.6]} 12...
Bb7 {[%clk 0:04:20.6]} 13. Qe2 {[%clk 0:04:40.6]} 13... Qc8 {[%clk 0:04:15.5]}
14. c4 {[%clk 0:04:38]} 14... Nf6 {[%clk 0:04:11]} 15. b3 {[%clk 0:04:36.6]}
15... Re8 {[%clk 0:04:04.8]} 16. Bb2 {[%clk 0:04:17.6]} 16... e5 {[%clk
0:04:03.7]} 17. Nbd2 {[%clk 0:04:04.2]} 17... Bc5 {[%clk 0:03:52.8]} 18. Rae1
{[%clk 0:03:54.7]} 18... e4 {[%clk 0:03:45.4]} 19. Nh4 {[%clk 0:03:42.8]} 19...
e3 {[%clk 0:03:44.1]} 20. Bxf6 {[%clk 0:03:09.5]} 20... exf2+ {[%clk 0:03:41.7]}
21. Qxf2 {[%clk 0:03:05.4]} 21... Bxf2+ {[%clk 0:03:38.4]} 22. Kxf2 {[%clk
0:03:04.2]} 22... Rxe1 {[%clk 0:03:37.8]} 23. Rxe1 {[%clk 0:03:03]} 23... gxf6
{[%clk 0:03:37]} 24. Ne4 {[%clk 0:02:55]} 24... Nd4 {[%clk 0:02:43.7]} 25. Nxf6+
{[%clk 0:02:53.2]} 25... Kh8 {[%clk 0:02:42.3]} 26. Nd5 {[%clk 0:02:46.6]} 26...
Bxd5 {[%clk 0:02:39]} 27. Bxd5 {[%clk 0:02:45.1]} 27... Qc5 {[%clk 0:02:32.4]}
28. Kg2 {[%clk 0:02:42.4]} 28... Rf8 {[%clk 0:02:27.8]} 29. Re4 {[%clk
0:02:27.4]} 29... Ne6 {[%clk 0:02:12.5]} 30. Nf5 {[%clk 0:02:15.9]} 30... h5
{[%clk 0:01:59.2]} 31. Nh6 {[%clk 0:01:40.1]} 31... Kg7 {[%clk 0:01:55.7]} 32.
Nf5+ {[%clk 0:01:38]} 32... Kf6 {[%clk 0:01:52.1]} 33. Ne3 {[%clk 0:01:27.4]}
33... Re8 {[%clk 0:01:45.3]} 34. h4 {[%clk 0:01:17.8]} 34... Re7 {[%clk
0:01:38.7]} 35. Kh3 {[%clk 0:01:13.8]} 35... Ng7 {[%clk 0:01:31.1]} 36. Rf4+
{[%clk 0:01:10.2]} 36... Kg6 {[%clk 0:01:30.3]} 37. Nc2 {[%clk 0:00:46.3]} 37...
f5 {[%clk 0:01:25.9]} 38. Nd4 {[%clk 0:00:43.5]} 38... Qd6 {[%clk 0:01:20.1]}
39. Nf3 {[%clk 0:00:32.1]} 39... Re3 {[%clk 0:01:18.2]} 40. Ng5 {[%clk
0:00:21.8]} 40... Qxf4 {[%clk 0:01:16.1]} 0-1

[Event "Live Chess"]
[Site "Chess.com"]
[Date "2024.06.02"]
[Round "-"]
[White "Harry_Li"]
[Black "RockTroll"]
[Result "1-0"]
[WhiteElo "2156"]
[BlackElo "2160"]
[TimeControl "300"]
[EndTime "4:07:10 PDT"]
[Termination "Harry_Li won by resignation"]

1. d4 {[%clk 0:04:58.2]} 1... Nf6 {[%clk 0:04:59.1]} 2. Nf3 {[%clk 0:04:56.8]}
2... g6 {[%clk 0:04:58.1]} 3. g3 {[%clk 0:04:54.2]} 3... Bg7 {[%clk 0:04:57.5]}
4. Bg2 {[%clk 0:04:53.8]} 4... O-O {[%clk 0:04:56.2]} 5. O-O {[%clk 0:04:52.8]}
5... d6 {[%clk 0:04:55.7]} 6. c4 {[%clk 0:04:51.8]} 6... c6 {[%clk 0:04:54.6]}
7. Nc3 {[%clk 0:04:39.9]} 7... Bf5 {[%clk 0:04:53]} 8. Re1 {[%clk 0:04:34.2]}
8... Ne4 {[%clk 0:04:48.9]} 9. Nh4 {[%clk 0:04:28.7]} 9... Nxc3 {[%clk
0:04:47.7]} 10. bxc3 {[%clk 0:04:28.2]} 10... Be6 {[%clk 0:04:46.4]} 11. d5
{[%clk 0:04:25.3]} 11... Bd7 {[%clk 0:04:45.5]} 12. Qc2 {[%clk 0:04:17.1]} 12...
c5 {[%clk 0:04:43.7]} 13. e4 {[%clk 0:04:10]} 13... Qa5 {[%clk 0:04:34.5]} 14.
Bd2 {[%clk 0:04:00.8]} 14... Qa3 {[%clk 0:04:31.8]} 15. f4 {[%clk 0:03:37.4]}
15... Ba4 {[%clk 0:04:27.3]} 16. Qd3 {[%clk 0:03:35]} 16... Nd7 {[%clk
0:04:21.9]} 17. Nf3 {[%clk 0:03:24.9]} 17... Qb2 {[%clk 0:04:15.4]} 18. Rec1
{[%clk 0:03:12.1]} 18... Nb6 {[%clk 0:04:11.1]} 19. e5 {[%clk 0:03:00.8]} 19...
Bd7 {[%clk 0:04:04.5]} 20. Re1 {[%clk 0:02:30.8]} 20... Bf5 {[%clk 0:04:02.1]}
21. Qe2 {[%clk 0:02:23.1]} 21... Qc2 {[%clk 0:03:48.6]} 22. Bf1 {[%clk
0:02:11.3]} 22... Bg4 {[%clk 0:03:42.7]} 23. Rad1 {[%clk 0:02:04.8]} 23... Bxf3
{[%clk 0:03:39.5]} 24. Qxf3 {[%clk 0:02:03.6]} 24... Nxc4 {[%clk 0:03:39]} 25.
Bxc4 {[%clk 0:02:02]} 1-0

[Event "Live Chess"]
[Site "Chess.com"]
[Date "2024.06.02"]
[Round "-"]
[White "dmitro74"]
[Black "sebmoran1"]
[Result "1-0"]
[WhiteElo "1743"]
[BlackElo "1403"]
[TimeControl "300"]
[EndTime "4:07:21 PDT"]
[Termination "dmitro74 won by resignation"]

1. d4 {[%clk 0:04:57.5]} 1... Nf6 {[%clk 0:04:56.2]} 2. c4 {[%clk 0:04:56.2]}
2... e6 {[%clk 0:04:55.3]} 3. Nc3 {[%clk 0:04:55.4]} 3... d5 {[%clk 0:04:54.5]}
4. Bg5 {[%clk 0:04:52.8]} 4... Be7 {[%clk 0:04:53.3]} 5. Nf3 {[%clk 0:04:51.9]}
5... O-O {[%clk 0:04:49.4]} 6. e3 {[%clk 0:04:50.5]} 6... c6 {[%clk 0:04:46.1]}
7. Bd3 {[%clk 0:04:48.6]} 7... Nbd7 {[%clk 0:04:42.3]} 8. O-O {[%clk 0:04:46]}
8... a6 {[%clk 0:04:38.9]} 9. cxd5 {[%clk 0:04:42]} 9... cxd5 {[%clk 0:04:37.7]}
10. a4 {[%clk 0:04:39.7]} 10... Qb6 {[%clk 0:04:35.3]} 11. Qd2 {[%clk
0:04:28.3]} 11... h6 {[%clk 0:04:30.4]} 12. Bf4 {[%clk 0:04:25.7]} 12... Bd6
{[%clk 0:04:22.8]} 13. Ne5 {[%clk 0:04:20.7]} 13... Nh5 {[%clk 0:04:14.3]} 14.
Nxd7 {[%clk 0:04:11.2]} 14... Bxd7 {[%clk 0:04:14.2]} 15. Bxd6 {[%clk
0:04:08.6]} 15... Qxd6 {[%clk 0:04:14.1]} 16. Rfc1 {[%clk 0:04:04.8]} 16... Rfc8
{[%clk 0:04:12]} 17. b3 {[%clk 0:03:56]} 17... Nf6 {[%clk 0:04:10.9]} 18. Ne2
{[%clk 0:03:48.3]} 18... Ng4 {[%clk 0:04:08.7]} 19. f4 {[%clk 0:03:40.6]} 19...
Rxc1+ {[%clk 0:04:00.5]} 20. Rxc1 {[%clk 0:03:38.6]} 20... Rc8 {[%clk
0:03:59.2]} 21. h3 {[%clk 0:03:34.4]} 21... Rxc1+ {[%clk 0:03:56.9]} 22. Qxc1
{[%clk 0:03:30.7]} 22... Nf6 {[%clk 0:03:56.1]} 23. Nc3 {[%clk 0:03:13.1]} 23...
Qb4 {[%clk 0:03:50]} 24. Qc2 {[%clk 0:03:10.2]} 24... Nh5 {[%clk 0:02:58]} 25.
Kf2 {[%clk 0:03:08.5]} 25... Nf6 {[%clk 0:02:53.8]} 26. g4 {[%clk 0:03:05.9]}
26... Qd6 {[%clk 0:02:46.2]} 27. Ne2 {[%clk 0:02:59]} 27... Nh7 {[%clk
0:02:37.5]} 28. Bxh7+ {[%clk 0:02:57]} 28... Kf8 {[%clk 0:02:36.6]} 29. Bd3
{[%clk 0:02:54.6]} 29... Bc6 {[%clk 0:02:34.2]} 30. Ng3 {[%clk 0:02:50.5]} 30...
Qb4 {[%clk 0:02:24.7]} 31. Qc5+ {[%clk 0:02:48.2]} 31... Qxc5 {[%clk 0:02:19.3]}
32. dxc5 {[%clk 0:02:47.1]} 32... Ke8 {[%clk 0:02:18.9]} 33. Ne2 {[%clk
0:02:42]} 33... Ke7 {[%clk 0:02:18.2]} 34. Nd4 {[%clk 0:02:40.5]} 34... f6
{[%clk 0:02:15.3]} 35. Nxc6+ {[%clk 0:02:37]} 35... bxc6 {[%clk 0:02:15.2]} 36.
Bxa6 {[%clk 0:02:36.2]} 36... e5 {[%clk 0:02:15.1]} 37. b4 {[%clk 0:02:30.3]}
37... e4 {[%clk 0:02:09.8]} 38. b5 {[%clk 0:02:28.7]} 38... cxb5 {[%clk
0:02:09.7]} 39. axb5 {[%clk 0:02:26.4]} 39... Kd7 {[%clk 0:02:09.6]} 40. Bb7
{[%clk 0:02:21.1]} 1-0

[Event "Live Chess"]
[Site "Chess.com"]
[Date "2024.06.02"]
[Round "-"]
[White "Eva3337"]
[Black "KyryloPoluliakh"]
[Result "0-1"]
[WhiteElo "1170"]
[BlackElo "1519"]
[TimeControl "300"]
[EndTime "4:07:26 PDT"]
[Termination "KyryloPoluliakh won on time"]

1. e4 {[%clk 0:04:54.8]} 1... c5 {[%clk 0:04:59.3]} 2. Nf3 {[%clk 0:04:53.8]}
2... Nc6 {[%clk 0:04:58.4]} 3. c3 {[%clk 0:04:53]} 3... g6 {[%clk 0:04:57.3]} 4.
Bd3 {[%clk 0:04:52.2]} 4... Bg7 {[%clk 0:04:55.3]} 5. O-O {[%clk 0:04:51.7]}
5... e6 {[%clk 0:04:52.6]} 6. Bc2 {[%clk 0:04:51.2]} 6... Nge7 {[%clk 0:04:51]}
7. Re1 {[%clk 0:04:50.7]} 7... O-O {[%clk 0:04:48.2]} 8. d4 {[%clk 0:04:49.7]}
8... cxd4 {[%clk 0:04:46.2]} 9. cxd4 {[%clk 0:04:48.7]} 9... d5 {[%clk
0:04:44.6]} 10. e5 {[%clk 0:04:45.7]} 10... f6 {[%clk 0:04:41.8]} 11. exf6
{[%clk 0:04:29.5]} 11... Bxf6 {[%clk 0:04:37.6]} 12. Be3 {[%clk 0:04:25.3]}
12... e5 {[%clk 0:04:31.2]} 13. dxe5 {[%clk 0:04:19]} 13... Nxe5 {[%clk
0:04:30.3]} 14. Nxe5 {[%clk 0:04:17.3]} 14... Bxe5 {[%clk 0:04:30.1]} 15. Bh6
{[%clk 0:04:05.3]} 15... Rf7 {[%clk 0:04:21.8]} 16. Rxe5 {[%clk 0:04:00.7]}
16... Qb6 {[%clk 0:04:13.7]} 17. Be3 {[%clk 0:03:49.8]} 17... Qxb2 {[%clk
0:04:06.4]} 18. Nd2 {[%clk 0:03:36.3]} 18... d4 {[%clk 0:04:03.3]} 19. Bg5
{[%clk 0:03:28.8]} 19... Nc6 {[%clk 0:03:49]} 20. Rc5 {[%clk 0:02:55.2]} 20...
Be6 {[%clk 0:03:36.5]} 21. Bb3 {[%clk 0:02:44.7]} 21... Bxb3 {[%clk 0:03:28]}
22. Nxb3 {[%clk 0:02:35]} 22... Qxf2+ {[%clk 0:03:25.3]} 23. Kh1 {[%clk
0:02:29.5]} 23... Raf8 {[%clk 0:03:07.4]} 24. Rcc1 {[%clk 0:02:13.4]} 24... d3
{[%clk 0:02:59.2]} 25. Qg1 {[%clk 0:02:09.1]} 25... Qf5 {[%clk 0:02:53.9]} 26.
Bh6 {[%clk 0:02:01.1]} 26... Re8 {[%clk 0:02:46.3]} 27. Re1 {[%clk 0:01:52.8]}
27... Rxe1 {[%clk 0:02:43.2]} 28. Rxe1 {[%clk 0:01:51.2]} 28... Ne5 {[%clk
0:02:33.8]} 29. h3 {[%clk 0:01:40.1]} 29... Qh5 {[%clk 0:01:40.9]} 30. Bd2
{[%clk 0:01:33.5]} 30... Ng4 {[%clk 0:01:30.8]} 31. Re8+ {[%clk 0:01:26.7]}
31... Kg7 {[%clk 0:01:25.2]} 32. Bc3+ {[%clk 0:01:23.4]} 32... Nf6 {[%clk
0:01:11.7]} 33. Bxf6+ {[%clk 0:01:19]} 33... Rxf6 {[%clk 0:01:09.8]} 34. Qd4
{[%clk 0:01:12.9]} 34... Qd1+ {[%clk 0:01:01.8]} 35. Kh2 {[%clk 0:01:10.8]}
35... Qf1 {[%clk 0:00:54.9]} 36. Re7+ {[%clk 0:01:05.3]} 36... Kg8 {[%clk
0:00:49.7]} 37. Re8+ {[%clk 0:00:47.5]} 37... Rf8 {[%clk 0:00:47.7]} 38. Qd5+
{[%clk 0:00:36]} 38... Kg7 {[%clk 0:00:46.1]} 39. Rxf8 {[%clk 0:00:30.5]} 39...
Kxf8 {[%clk 0:00:38.7]} 40. Qd6+ {[%clk 0:00:22.8]} 40... Kf7 {[%clk 0:00:28.4]}
41. Nc5 {[%clk 0:00:17.6]} 41... b6 {[%clk 0:00:17.5]} 42. Nxd3 {[%clk
0:00:10.9]} 42... Kg7 {[%clk 0:00:13]} 43. Qd4+ {[%clk 0:00:09.6]} 43... Kf7
{[%clk 0:00:10.7]} 44. Nf4 {[%clk 0:00:06.3]} 44... g5 {[%clk 0:00:08.9]} 45.
Nd5 {[%clk 0:00:04.8]} 45... Ke6 {[%clk 0:00:06.4]} 0-1

[Event "Live Chess"]
[Site "Chess.com"]
[Date "2024.06.02"]
[Round "-"]
[White "Tilbs_12"]
[Black "Trendle"]
[Result "0-1"]
[WhiteElo "1656"]
[BlackElo "2620"]
[TimeControl "300"]
[EndTime "4:07:26 PDT"]
[Termination "Trendle won by resignation"]

1. d4 {[%clk 0:04:57.5]} 1... Nf6 {[%clk 0:04:58.4]} 2. Nc3 {[%clk 0:04:54.4]}
2... e6 {[%clk 0:04:51.1]} 3. e4 {[%clk 0:04:53.4]} 3... d5 {[%clk 0:04:50.4]}
4. e5 {[%clk 0:04:51.5]} 4... Nfd7 {[%clk 0:04:49.7]} 5. Nce2 {[%clk 0:04:41.2]}
5... c5 {[%clk 0:04:48.1]} 6. c3 {[%clk 0:04:40.3]} 6... Nc6 {[%clk 0:04:47.6]}
7. Nf3 {[%clk 0:04:39.4]} 7... b5 {[%clk 0:04:46.7]} 8. a3 {[%clk 0:04:30.5]}
8... Rb8 {[%clk 0:04:39.3]} 9. b4 {[%clk 0:04:28.1]} 9... cxd4 {[%clk
0:04:32.1]} 10. cxd4 {[%clk 0:04:26.3]} 10... a5 {[%clk 0:04:31.7]} 11. bxa5
{[%clk 0:03:26.2]} 11... Nxa5 {[%clk 0:04:31.6]} 12. Nc3 {[%clk 0:03:05.9]}
12... b4 {[%clk 0:04:25.5]} 13. axb4 {[%clk 0:03:04.5]} 13... Bxb4 {[%clk
0:04:25.4]} 14. Bd2 {[%clk 0:02:59.3]} 14... f6 {[%clk 0:04:18.1]} 15. Bd3
{[%clk 0:02:37.2]} 15... O-O {[%clk 0:04:15.7]} 16. O-O {[%clk 0:02:36]} 16...
fxe5 {[%clk 0:04:14.4]} 17. Nxe5 {[%clk 0:02:33.8]} 17... Nxe5 {[%clk
0:04:11.6]} 18. dxe5 {[%clk 0:02:33.7]} 18... Qh4 {[%clk 0:03:57.4]} 19. Rb1
{[%clk 0:01:56.2]} 19... Bd7 {[%clk 0:03:37.3]} 20. Na2 {[%clk 0:01:37.7]} 20...
Bxd2 {[%clk 0:03:24.8]} 21. Qxd2 {[%clk 0:01:37.6]} 21... Rxb1 {[%clk
0:03:23.7]} 22. Rxb1 {[%clk 0:01:32.9]} 22... Nc4 {[%clk 0:03:22.8]} 23. Bxc4
{[%clk 0:01:31.2]} 23... Qxc4 {[%clk 0:03:21.5]} 24. Rc1 {[%clk 0:01:26.6]}
24... Qe4 {[%clk 0:03:15.6]} 25. Re1 {[%clk 0:01:22.6]} 25... Qf5 {[%clk
0:03:13.7]} 26. Nb4 {[%clk 0:01:09]} 26... Ba4 {[%clk 0:03:00.4]} 27. Nd3 {[%clk
0:01:04.8]} 27... h6 {[%clk 0:02:54.3]} 28. Re3 {[%clk 0:00:57.1]} 28... Qg5
{[%clk 0:02:45.7]} 29. Qa2 {[%clk 0:00:45.6]} 29... Bb5 {[%clk 0:02:41]} 30. Qb3
{[%clk 0:00:41.3]} 30... Bc4 {[%clk 0:02:35.1]} 31. Qc3 {[%clk 0:00:32.7]} 31...
Qg4 {[%clk 0:02:32.3]} 32. h3 {[%clk 0:00:22.9]} 32... Qd1+ {[%clk 0:02:26.9]}
33. Kh2 {[%clk 0:00:22]} 33... Qf1 {[%clk 0:02:11.5]} 34. Nb2 {[%clk 0:00:19.6]}
34... Qxf2 {[%clk 0:02:00.6]} 35. Nxc4 {[%clk 0:00:18.2]} 35... dxc4 {[%clk
0:01:59.8]} 36. Rf3 {[%clk 0:00:17]} 36... Rxf3 {[%clk 0:01:57.8]} 37. Qxf3
{[%clk 0:00:15.4]} 37... Qxf3 {[%clk 0:01:57.2]} 38. gxf3 {[%clk 0:00:15.3]}
38... c3 {[%clk 0:01:56.8]} 39. Kg2 {[%clk 0:00:15.2]} 39... c2 {[%clk
0:01:56.3]} 40. Kf2 {[%clk 0:00:15.1]} 40... c1=Q {[%clk 0:01:55.8]} 0-1

[Event "Live Chess"]
[Site "Chess.com"]
[Date "2024.06.02"]
[Round "-"]
[White "willc-h99"]
[Black "Kyrylo7770"]
[Result "1-0"]
[WhiteElo "2597"]
[BlackElo "1636"]
[TimeControl "300"]
[EndTime "4:07:31 PDT"]
[Termination "willc-h99 won by checkmate"]

1. d4 {[%clk 0:04:59.4]} 1... d5 {[%clk 0:04:57.2]} 2. Bg5 {[%clk 0:04:58.3]}
2... Bg4 {[%clk 0:04:56.1]} 3. Qd3 {[%clk 0:04:48]} 3... c6 {[%clk 0:04:53.5]}
4. Nc3 {[%clk 0:04:43.6]} 4... h6 {[%clk 0:04:52.5]} 5. Bh4 {[%clk 0:04:41.3]}
5... Nf6 {[%clk 0:04:49.5]} 6. f3 {[%clk 0:04:39.7]} 6... Bh5 {[%clk 0:04:48.4]}
7. e4 {[%clk 0:04:36.9]} 7... dxe4 {[%clk 0:04:47.3]} 8. fxe4 {[%clk 0:04:36]}
8... e6 {[%clk 0:04:45.6]} 9. Be2 {[%clk 0:04:29.5]} 9... Be7 {[%clk 0:04:44.4]}
10. Bxf6 {[%clk 0:04:18.9]} 10... Bxf6 {[%clk 0:04:43.5]} 11. Bxh5 {[%clk
0:04:17.2]} 11... Bxd4 {[%clk 0:04:41.5]} 12. O-O-O {[%clk 0:04:13.8]} 12...
Qg5+ {[%clk 0:04:39.4]} 13. Kb1 {[%clk 0:04:08.3]} 13... c5 {[%clk 0:04:35.9]}
14. Nb5 {[%clk 0:03:56]} 14... Na6 {[%clk 0:04:32]} 15. Nd6+ {[%clk 0:03:46.8]}
15... Ke7 {[%clk 0:04:27.3]} 16. Nxf7 {[%clk 0:03:24]} 16... Qxh5 {[%clk
0:04:21.8]} 17. Nxh8 {[%clk 0:03:23]} 17... Nb4 {[%clk 0:04:17.4]} 18. Qf3
{[%clk 0:03:15.1]} 18... Qe5 {[%clk 0:03:55.6]} 19. Ng6+ {[%clk 0:03:11.5]}
19... Kd6 {[%clk 0:03:54]} 20. Nxe5 {[%clk 0:03:11.4]} 20... Kxe5 {[%clk
0:03:53.6]} 21. c3 {[%clk 0:03:10]} 21... Bxg1 {[%clk 0:03:50.9]} 22. Rhxg1
{[%clk 0:03:08.2]} 22... Nc6 {[%clk 0:03:48.6]} 23. Rgf1 {[%clk 0:03:05.6]}
23... a5 {[%clk 0:03:38.2]} 24. Qf4# {[%clk 0:03:04]} 1-0